bitfinex-derivatives/quotes_SOLF0:USTF0_20260316
["timestamp","ask_amount","ask_price","bid_price","bid_amount"]
[1773682107868,33.54,93.779,93.7,3.62900065]
[1773682108065,26.64043957,93.81,93.77,3.62900065]
[1773682108269,26.64043957,93.81,93.78,3.62900065]
[1773682108670,26.64043957,93.81,93.77,3.62900065]
[1773682110773,26.64043957,93.81,93.74,8.65647318]
[1773682111876,26.64043957,93.81,93.72,8.65647318]
[1773682112074,26.64043957,93.81,93.721,38.06]
[1773682120382,26.64043957,93.81,93.722,117.0]
[1773682120680,26.64043957,93.81,93.723,117.0]
[1773682120980,26.64043957,93.81,93.7,8.65647318]
[1773682121182,26.64043957,93.81,93.701,117.0]
[1773682122580,26.61897872,93.805,93.701,117.0]
[1773682126186,26.61897872,93.805,93.72,8.66400193]
[1773682126389,26.61897872,93.805,93.721,117.0]
[1773682129394,26.61897872,93.805,93.722,117.0]
[1773682130797,26.77458331,93.799,93.73,3.63829372]
[1773682132395,26.77458331,93.799,93.731,117.0]
[1773682132997,26.77458331,93.799,93.74,3.63829372]
[1773682133196,26.77458331,93.799,93.741,117.0]
[1773682138400,26.77458331,93.799,93.742,117.0]
[1773682141000,3.63829372,93.79,93.742,117.0]
[1773682141404,30.63568271,93.79,93.743,117.0]
[1773682144402,30.63568271,93.79,93.744,117.0]
[1773682144807,26.99738899,93.79,93.744,117.0]
[1773682147410,26.99738899,93.79,93.745,117.0]
[1773682149512,3.63829372,93.8,93.745,117.0]
[1773682149714,26.95224338,93.803,93.745,117.0]
[1773682150414,26.94036147,93.799,93.746,117.0]
[1773682153517,26.94036147,93.799,93.747,117.0]
[1773682154815,26.93839317,93.779,93.72,3.63829372]
[1773682155016,26.93839317,93.779,93.721,161.48]
[1773682155218,26.93839317,93.806,93.74,3.63829372]
[1773682155922,26.93839317,93.806,93.73,3.63829372]
[1773682156818,26.93839317,93.806,93.74,3.63829372]
[1773682157917,26.96536157,93.789,93.72,3.63829372]
[1773682160724,26.96536157,93.789,93.73,3.63829372]
[1773682161023,26.96536157,93.789,93.74,3.63829372]
[1773682162126,26.96536157,93.789,93.73,3.63829372]
[1773682162526,26.96536157,93.789,93.72,3.63829372]
[1773682162725,26.96536157,93.789,93.721,117.0]
[1773682163226,26.96101168,93.779,93.721,117.0]
[1773682163524,26.96101168,93.779,93.722,117.0]
[1773682166526,26.96101168,93.779,93.73,3.63829372]
[1773682166731,26.96101168,93.779,93.722,117.0]
[1773682167532,26.97859105,93.769,93.722,117.0]
[1773682167735,26.97859105,93.769,93.71,3.63829372]
[1773682168733,26.97859105,93.769,93.72,3.63829372]
[1773682177239,26.97859105,93.769,93.71,3.63829372]
[1773682177538,26.97859105,93.769,93.711,117.0]
[1773682177729,26.99822454,93.759,93.701,117.0]
[1773682177933,26.99822454,93.749,93.702,117.0]
[1773682179639,27.0099406,93.739,93.702,117.0]
[1773682179840,27.0099406,93.739,93.681,117.0]
[1773682180137,27.0099406,93.739,93.68,3.63829372]
[1773682180138,27.0099406,93.739,93.682,117.0]
[1773682180331,27.0099406,93.739,93.671,44.12]
[1773682180332,27.0099406,93.729,93.671,44.12]
[1773682180540,27.0099406,93.719,93.621,187.62]
[1773682180740,27.0099406,93.719,93.66,3.63829372]
[1773682182440,27.0099406,93.719,93.622,43.84]
[1773682182740,27.0099406,93.719,93.65,3.63829372]
[1773682183136,27.0099406,93.719,93.622,43.84]
[1773682183338,26.99963779,93.709,93.65,3.63829372]
[1773682184743,26.99963779,93.709,93.65,3.64497325]
[1773682185443,26.99963779,93.709,93.66,3.64497325]
[1773682191047,26.99963779,93.709,93.67,3.64497325]
[1773682191246,26.99963779,93.709,93.671,117.0]
[1773682195450,26.99963779,93.709,93.672,117.0]
[1773682198552,26.99963779,93.709,93.661,117.0]
[1773682201553,26.99963779,93.709,93.662,117.0]
[1773682203853,26.95284121,93.728,93.67,3.64497325]
[1773682204053,26.95284121,93.728,93.671,117.0]
[1773682204760,26.95284121,93.728,93.617,175.0]
[1773682204761,26.95284121,93.728,93.68,3.64497325]
[1773682208857,30.61639635,93.74,93.68,3.64497325]
[1773682209161,26.9714231,93.74,93.69,3.64497325]
[1773682209558,26.9665171,93.794,93.677,43.54]
[1773682209861,26.9665171,93.794,93.74,3.64497325]
[1773682215566,26.85040052,93.789,93.73,3.64497325]
[1773682215967,26.85040052,93.789,93.72,3.64497325]
[1773682216968,26.85040052,93.789,93.73,3.64497325]
[1773682220570,26.85040052,93.789,93.74,3.64497325]
[1773682224477,26.85040052,93.789,93.73,3.64497325]
[1773682227280,26.85040052,93.789,93.74,3.64497325]
[1773682228078,26.85040052,93.789,93.75,3.64497325]
[1773682229278,26.85040052,93.789,93.74,3.64497325]
[1773682229581,26.86395089,93.779,93.72,3.64497325]
[1773682229782,26.86395089,93.779,93.721,117.0]
[1773682231784,26.86395089,93.779,93.73,3.64497325]
[1773682234483,26.86395089,93.779,93.731,117.0]
[1773682236387,26.8741991,93.769,93.731,117.0]
[1773682236586,26.8741991,93.769,93.689,37.5]
[1773682236587,26.8741991,93.759,93.7,3.64497325]
[1773682236788,26.8741991,93.759,93.701,117.0]
[1773682237989,26.8741991,93.759,93.71,3.64497325]
[1773682239690,26.8741991,93.759,93.701,117.0]
[1773682240492,26.8741991,93.759,93.702,117.0]
[1773682243489,3.64497325,93.74,93.68,3.64497325]
[1773682243690,26.91108516,93.739,93.681,117.0]
[1773682243990,26.91108516,93.739,93.69,3.64497325]
[1773682244297,3.64497325,93.76,93.7,3.64497325]
[1773682244499,26.91205283,93.759,93.71,3.64497325]
[1773682244798,26.91205283,93.759,93.71,3.6405086]
[1773682245098,26.91205283,93.759,93.7,3.6405086]
[1773682246300,26.92479979,93.749,93.69,3.6405086]
[1773682246597,26.92479979,93.749,93.682,117.0]
[1773682248901,26.9177289,93.739,93.682,117.0]
[1773682249097,26.9177289,93.739,93.683,117.0]
[1773682249299,26.9177289,93.739,93.69,3.6405086]
[1773682249802,26.9177289,93.739,93.7,3.6405086]
[1773682250002,26.91931048,93.759,93.71,3.6405086]
[1773682250203,26.91931048,93.759,93.72,3.6405086]
[1773682250402,26.91931048,93.775,93.73,3.6405086]
[1773682250703,26.91931048,93.775,93.74,3.6405086]
[1773682251702,26.90772535,93.789,93.75,3.6405086]
[1773682252405,26.90772535,93.789,93.74,3.6405086]
[1773682256806,26.90772535,93.789,93.73,3.6405086]
[1773682257004,26.90772535,93.789,93.731,117.0]
[1773682258910,26.90772535,93.789,93.74,3.6405086]
[1773682259207,26.90772535,93.789,93.75,3.6405086]
[1773682260304,27.00747647,93.829,93.77,3.6405086]
[1773682260505,27.00747647,93.819,93.76,3.6405086]
[1773682261304,27.00747647,93.819,93.78,3.6405086]
[1773682263714,27.00747647,93.819,93.755,41.0]
[1773682263908,27.00747647,93.819,93.78,3.6405086]
[1773682264312,27.00747647,93.819,93.77,3.6405086]
[1773682265111,27.00747647,93.819,93.78,3.6405086]
[1773682267012,27.00747647,93.819,93.77,3.6405086]
[1773682267513,27.00747647,93.819,93.771,117.0]
[1773682268111,27.00747647,93.819,93.71,175.0]
[1773682268112,26.8214868,93.809,93.686,32.0]
[1773682268315,26.8214868,93.809,93.75,3.6405086]
[1773682268717,26.82206837,93.799,93.73,3.6405086]
[1773682268914,26.82206837,93.789,93.73,3.6405086]
[1773682269116,26.82206837,93.789,93.73,120.6405086]
[1773682270010,26.82585752,93.759,93.7,3.6405086]
[1773682274517,26.82585752,93.759,93.71,3.6405086]
[1773682275416,26.82585752,93.759,93.72,3.6405086]
[1773682277421,27.007121,93.774,93.72,3.6405086]
[1773682277621,27.007121,93.774,93.73,3.6405086]
[1773682280014,27.007121,93.774,93.72,3.6405086]
[1773682280520,27.007121,93.774,93.73,3.6405086]
[1773682281519,27.007121,93.774,93.72,3.6405086]
[1773682282520,27.007121,93.774,93.721,117.0]
[1773682285421,27.0119765,93.769,93.704,42.58]
[1773682285622,27.0119765,93.769,93.71,3.6405086]
[1773682294422,27.0119765,93.769,93.704,42.58]
[1773682294724,27.01440203,93.759,93.704,42.58]
[1773682294923,27.01440203,93.759,93.71,3.6405086]
[1773682295726,27.01432159,93.785,93.73,3.6405086]
[1773682295925,27.01432159,93.801,93.76,3.6405086]
[1773682296126,27.01432159,93.801,93.77,3.6405086]
[1773682296323,27.01432159,93.829,93.77,3.6405086]
[1773682297822,27.01432159,93.829,93.78,3.6405086]
[1773682299129,27.01432159,93.829,93.77,3.6405086]
[1773682300528,27.01432159,93.829,93.758,43.76]
[1773682300838,27.01432159,93.829,93.8,3.6405086]
[1773682301331,27.01780041,93.859,93.8,3.6405086]
[1773682302132,27.01780041,93.859,93.764,40.66]
[1773682302133,106.366,94.011,93.764,40.66]
[1773682302331,27.01192587,94.019,93.847,106.55]
[1773682302634,27.01192587,94.019,93.876,32.0]
[1773682302932,27.01192587,94.019,93.92,8.61887559]
[1773682303133,25.17426139,94.036,93.921,40.14]
[1773682303436,8.61887559,94.16,93.922,40.0]
[1773682303629,8.61887559,94.07,93.94,8.61887559]
[1773682304025,8.61887559,94.08,93.96,8.61887559]
[1773682304233,124.0,94.13,93.95,8.61887559]
[1773682304430,124.0,94.13,93.941,39.7]
[1773682304637,1.85062086,94.103,93.941,39.7]
[1773682305332,11.99926798,94.049,93.942,40.24]
[1773682305531,11.99926798,94.049,93.943,40.3]
[1773682306039,11.99926798,94.049,93.944,40.66]
[1773682306337,11.99926798,94.049,93.95,8.61887559]
[1773682306537,11.99926798,94.049,93.951,40.88]
[1773682307534,11.99926798,94.049,93.95,8.61515308]
[1773682307741,11.99926798,94.049,93.952,41.46]
[1773682308742,11.96227242,94.096,93.952,41.46]
[1773682308942,11.96227242,94.079,93.952,41.46]
[1773682309144,11.96227242,94.059,93.952,41.46]
[1773682309339,11.96227242,94.039,93.899,335.46544274]
[1773682309543,11.96227242,94.019,93.91,8.61515308]
[1773682309841,8.61515308,94.05,93.93,8.61515308]
[1773682310035,11.96377984,94.049,93.93,8.61515308]
[1773682310340,8.61515308,94.03,93.93,8.61515308]
[1773682310543,11.96377984,94.029,93.931,41.98]
[1773682310744,11.96377984,94.029,93.932,41.94]
[1773682311044,11.96377984,94.029,93.94,8.61515308]
[1773682311243,11.96377984,94.029,93.941,42.2]
[1773682312241,11.96377984,94.029,93.94,8.61515308]
[1773682312448,11.96377984,94.029,93.941,42.6]
[1773682312739,11.96377984,94.029,93.92,8.61515308]
[1773682312740,11.96377984,94.029,93.942,42.56]
[1773682313448,11.95204523,94.019,93.9,8.61515308]
[1773682313648,11.95204523,94.019,93.901,42.94]
[1773682315947,12.01984508,93.999,93.899,335.46544274]
[1773682316141,12.01984508,93.999,93.9,43.7]
[1773682316748,12.01984508,93.999,93.899,335.46544274]
[1773682316951,12.00530883,93.989,93.899,335.46544274]
[1773682317150,12.00530883,93.989,93.9,44.0]
[1773682317345,12.00530883,93.989,93.899,335.46544274]
[1773682317650,12.00530883,93.989,93.9,44.12]
[1773682317945,12.00530883,93.989,93.899,335.46544274]
[1773682318148,12.00530883,93.989,93.9,44.22]
[1773682318846,11.9915983,93.969,93.9,44.22]
[1773682319149,11.9915983,93.969,93.875,44.48]
[1773682320150,11.99990215,93.949,93.875,44.48]
[1773682320450,11.99990215,93.949,93.866,44.28]
[1773682321145,8.61515308,93.93,93.855,44.04]
[1773682321341,11.99195716,93.929,93.82,8.61515308]
[1773682321541,11.99195716,93.929,93.821,43.76]
[1773682321746,11.99195716,93.929,93.8,195.87515308]
[1773682321956,11.99037337,93.909,93.801,43.9]
[1773682324446,11.98437864,93.889,93.801,43.9]
[1773682330652,11.98437864,93.889,93.802,117.0]
[1773682330955,11.97498203,93.929,93.82,8.61515308]
[1773682331156,11.97498203,93.929,93.84,8.61515308]
[1773682331453,11.97498203,93.929,93.841,44.64]
[1773682333650,11.97498203,93.929,93.84,8.61515308]
[1773682342563,11.97498203,93.929,93.841,117.0]
[1773682343363,11.97498203,93.929,93.86,8.61515308]
[1773682343667,11.97498203,93.929,93.861,117.0]
[1773682343862,11.97498203,93.929,93.845,40.44]
[1773682344062,11.97498203,93.929,93.82,8.61515308]
[1773682344664,8.61515308,93.91,93.816,40.68]
[1773682344865,12.04110816,93.909,93.808,453.55377669]
[1773682345758,12.04110816,93.909,93.82,8.61515308]
[1773682346867,12.04110816,93.909,93.808,453.55377669]
[1773682348165,11.89185241,93.899,93.808,496.11377669]
[1773682350462,11.89185241,93.899,93.808,453.55377669]
[1773682350659,11.89185241,93.899,93.809,43.48]
[1773682351266,11.89185241,93.899,93.81,117.0]
[1773682351568,11.77149018,93.896,93.81,117.0]
[1773682351767,11.77149018,93.896,93.809,43.48]
[1773682352066,11.77149018,93.879,93.77,8.61515308]
[1773682352463,11.77149018,93.879,93.771,43.78]
[1773682354669,11.77149018,93.879,93.772,43.94]
[1773682359074,11.77149018,93.879,93.773,44.92]
[1773682361275,11.77149018,93.879,93.77,8.61515308]
[1773682361475,11.77149018,93.879,93.771,45.32]
[1773682361974,11.77149018,93.879,93.772,45.38]
[1773682365377,11.77149018,93.879,93.774,19.194]
[1773682365682,11.77149018,93.879,93.79,8.61515308]
[1773682366781,11.77149018,93.879,93.791,45.86]
[1773682368780,11.77149018,93.879,93.8,8.64642455]
[1773682370273,11.77149018,93.879,93.78,8.64642455]
[1773682370477,11.79489491,93.869,93.763,46.1]
[1773682370673,11.79489491,93.869,93.76,8.64642455]
[1773682371584,11.79440813,93.868,93.76,8.64642455]
[1773682373886,11.79440813,93.868,93.78,8.64642455]
[1773682375788,11.75792855,93.909,93.8,8.64642455]
[1773682380787,19.166,93.908,93.798,46.02]
[1773682380993,11.73565989,93.889,93.798,46.02]
[1773682381191,11.73565989,93.889,93.78,8.64642455]
[1773682381599,11.73565989,93.887,93.78,8.64642455]
[1773682381997,11.73566999,93.869,93.76,8.64642455]
[1773682382690,11.73566999,93.869,93.76,40.64642455]
[1773682382896,11.73566999,93.869,93.78,8.64642455]
[1773682390599,11.73566999,93.869,93.781,117.0]
[1773682392498,11.77119768,93.867,93.769,117.0]
[1773682392696,11.77119768,93.867,93.768,117.0]
[1773682393800,11.77245402,93.863,93.768,117.0]
[1773682395701,11.77245402,93.863,93.767,46.0]
[1773682396803,11.7524351,93.858,93.767,46.0]
[1773682397004,11.7524351,93.858,93.761,117.0]
[1773682397303,11.7524351,93.858,93.763,46.2]
[1773682397900,11.7524351,93.858,93.76,8.64642455]
[1773682398105,11.7524351,93.858,93.761,46.22]
[1773682398507,19.177,93.857,93.761,46.22]
[1773682398708,11.75237165,93.856,93.761,46.22]
[1773682399507,11.75226373,93.853,93.761,46.22]
[1773682401007,11.7546523,93.849,93.761,46.22]
[1773682402609,11.74088042,93.843,93.761,46.22]
[1773682403911,11.74088042,93.843,93.762,117.0]
[1773682404908,11.74088042,93.843,93.761,46.22]
[1773682405112,11.72194796,93.829,93.736,117.0]
[1773682405407,11.72194796,93.829,93.737,163.42]
[1773682406611,11.73559636,93.827,93.737,163.42]
[1773682407615,11.73559636,93.827,93.738,46.52]
[1773682407817,11.73559636,93.827,93.74,8.64642455]
[1773682408012,11.73559636,93.827,93.738,46.52]
[1773682409518,11.70751077,93.82,93.738,46.52]
[1773682410217,11.55561623,93.818,93.7,8.64642455]
[1773682410410,11.55561623,93.809,93.7,8.64642455]
[1773682410614,11.55561623,93.807,93.701,46.54]
[1773682411017,11.55528041,93.805,93.701,46.54]
[1773682412520,11.56443513,93.8,93.701,46.54]
[1773682413515,19.189,93.798,93.701,46.54]
[1773682413821,11.57051936,93.797,93.701,46.54]
[1773682414018,11.5210945,93.787,93.701,46.54]
[1773682414217,11.5210945,93.769,93.664,46.06]
[1773682414417,11.5210945,93.767,93.665,46.06]
[1773682414624,11.51506248,93.749,93.654,46.1]
[1773682414922,11.51506248,93.749,93.645,46.12]
[1773682417928,11.51506248,93.749,93.66,8.64642455]
[1773682418529,11.51506248,93.749,93.68,8.64642455]
[1773682420128,11.5117594,93.784,93.68,8.64642455]
[1773682423631,11.5117594,93.784,93.7,8.64642455]
[1773682425434,11.5117594,93.784,93.69,8.64642455]
[1773682428831,11.5117594,93.784,93.667,32.02]
[1773682429033,11.5117594,93.784,93.69,8.66625851]
[1773682429229,11.5117594,93.784,93.67,8.66625851]
[1773682430534,11.58692586,93.782,93.67,8.66625851]
[1773682431042,11.58692586,93.782,93.668,45.58]
[1773682431230,8.66625851,93.78,93.67,8.66625851]
[1773682431429,11.59908521,93.759,93.65,8.66625851]
[1773682431834,11.61340364,93.757,93.65,8.66625851]
[1773682432035,11.61340364,93.755,93.65,8.66625851]
[1773682432537,11.61340364,93.755,93.67,8.66625851]
[1773682433935,11.61340364,93.755,93.663,45.56]
[1773682437035,11.61340364,93.755,93.68,8.66625851]
[1773682438341,8.66625851,93.79,93.68,8.66625851]
[1773682438546,11.4921949,93.771,93.68,8.66625851]
[1773682439549,11.49179584,93.804,93.7,8.66625851]
[1773682440342,11.49179584,93.804,93.72,8.66625851]
[1773682441646,11.49179584,93.804,93.68,8.66625851]
[1773682441647,11.47211887,93.849,93.74,8.66625851]
[1773682442147,11.47211887,93.849,93.76,8.66625851]
[1773682444942,11.50107197,93.839,93.716,445.14332404]
[1773682445146,11.50107197,93.839,93.72,8.66625851]
[1773682447248,11.50220947,93.837,93.72,8.66625851]
[1773682448549,11.48227952,93.836,93.72,8.66625851]
[1773682448949,11.48238702,93.819,93.716,445.14332404]
[1773682449554,11.48238702,93.819,93.717,45.1]
[1773682451553,11.48300268,93.817,93.717,45.1]
[1773682451854,11.48332177,93.816,93.716,445.14332404]
[1773682452554,11.48332177,93.815,93.716,445.14332404]
[1773682454754,11.48332177,93.815,93.717,45.94]
[1773682455755,11.48332177,93.815,93.74,8.66625851]
[1773682455955,11.48332177,93.815,93.72,8.66625851]
[1773682462163,11.48332177,93.815,93.718,46.1]
[1773682462566,11.48332177,93.815,93.719,117.0]
[1773682463067,27.85025851,93.82,93.716,445.14332404]
[1773682463068,11.53408805,93.799,93.72,117.0]
[1773682463769,11.53408805,93.799,93.716,445.14332404]
[1773682464170,11.53408805,93.799,93.717,46.98]
[1773682466771,3.63878162,93.79,93.73,3.63878162]
[1773682467775,11.57699306,93.789,93.73,3.63878162]
[1773682467972,11.57699306,93.789,93.72,3.63878162]
[1773682468369,3.63878162,93.78,93.72,3.63878162]
[1773682468575,15.21577468,93.78,93.72,3.63878162]
[1773682468873,11.55354201,93.779,93.72,3.63878162]
[1773682471475,11.55354201,93.779,93.73,3.63878162]
[1773682473476,11.54948924,93.799,93.74,3.63878162]
[1773682475079,11.54948924,93.799,93.717,46.98]
[1773682475377,11.54948924,93.799,93.74,3.63878162]
[1773682477786,11.54948924,93.799,93.741,117.0]
[1773682480588,11.54948924,93.799,93.742,117.0]
[1773682480786,11.54286087,93.789,93.742,117.0]
[1773682480990,11.54286087,93.779,93.721,117.0]
[1773682483389,11.54286087,93.779,93.73,3.63878162]
[1773682483595,11.54286087,93.779,93.721,117.0]
[1773682486497,11.54286087,93.779,93.73,3.63878162]
[1773682486698,11.54286087,93.779,93.73,120.63878162]
[1773682488201,11.54286087,93.779,93.73,117.0]
[1773682488402,11.54286087,93.779,93.73,120.63878162]
[1773682489403,11.54286087,93.779,93.73,117.0]
[1773682489604,11.54286087,93.779,93.731,117.0]
[1773682490001,11.54814782,93.759,93.716,445.14332404]
[1773682490301,11.54814782,93.759,93.697,48.54]
[1773682490502,11.54814782,93.759,93.698,48.58]
[1773682490703,11.54814782,93.759,93.71,3.63878162]
[1773682490904,11.54814782,93.759,93.72,3.64028228]
[1773682491096,11.54809245,93.779,93.72,3.64028228]
[1773682491295,11.54809245,93.779,93.721,48.02]
[1773682492805,11.54809245,93.779,93.73,3.64028228]
[1773682495302,11.54809245,93.779,93.721,48.02]
[1773682495506,11.54809245,93.779,93.73,3.64028228]
[1773682496906,11.43109428,93.799,93.74,3.64028228]
[1773682497108,11.43109428,93.799,93.75,3.64028228]
[1773682498210,9.61446739,93.779,93.72,3.64028228]
[1773682498507,9.61446739,93.779,93.73,3.64028228]
[1773682499307,9.61446739,93.779,93.687,32.02]
[1773682499509,9.61446739,93.779,93.72,3.64028228]
[1773682500608,9.61446739,93.779,93.73,3.64028228]
[1773682504611,9.61446739,93.779,93.731,117.0]
[1773682505105,19.185,93.818,93.74,3.64028228]
[1773682505106,9.73254134,93.793,93.74,3.64028228]
[1773682505308,9.73254134,93.819,93.76,3.64028228]
[1773682505509,9.73254134,93.819,93.77,3.64028228]
[1773682506615,19.176,93.861,93.79,3.64028228]
[1773682506616,9.73193838,93.849,93.79,3.64028228]
[1773682507212,9.72834755,93.829,93.75,46.16]
[1773682507411,3.64028228,93.82,93.76,3.64028228]
[1773682507912,3.64028228,93.81,93.75,3.64028228]
[1773682508109,9.73575372,93.809,93.75,3.64028228]
[1773682508912,9.73575372,93.809,93.74,3.64028228]
[1773682510012,9.73575372,93.809,93.75,3.64028228]
[1773682510814,9.73575372,93.809,93.719,44.58]
[1773682510815,9.73575372,93.809,93.76,3.64028228]
[1773682511914,9.73575372,93.809,93.75,3.64028228]
[1773682513114,9.73575372,93.809,93.76,3.64028228]
[1773682515316,9.73575372,93.809,93.75,3.64028228]
[1773682515515,3.64028228,93.8,93.74,3.64028228]
[1773682515815,9.73575372,93.809,93.74,3.64028228]
[1773682516612,9.73575372,93.809,93.741,117.0]
[1773682516810,9.73575372,93.809,93.75,3.64028228]
[1773682517717,328.99163156,93.858,93.741,117.0]
[1773682517718,9.72259296,93.799,93.741,117.0]
[1773682517917,3.64028228,93.79,93.741,117.0]
[1773682518116,9.72259296,93.789,93.742,117.0]
[1773682520319,9.72094542,93.815,93.75,3.64028228]
[1773682521319,9.71076528,93.809,93.75,3.64028228]
[1773682521920,3.64028228,93.8,93.75,3.64028228]
[1773682522220,9.70732492,93.799,93.744,117.0]
[1773682523522,9.70711551,93.789,93.744,117.0]
[1773682523721,9.70711551,93.789,93.731,117.0]
[1773682524218,9.70711551,93.789,93.75,3.64028228]
[1773682524520,9.70643147,93.809,93.75,3.64028228]
[1773682525721,9.70643147,93.809,93.74,3.64028228]
[1773682528627,9.70643147,93.809,93.741,117.0]
[1773682530428,9.70643147,93.809,93.75,3.64028228]
[1773682531228,9.70643147,93.809,93.741,117.0]
[1773682531629,9.70643147,93.809,93.742,117.0]
[1773682532126,3.64028228,93.81,93.743,117.0]
[1773682532430,9.65854347,93.819,93.75,3.64028228]
[1773682533132,9.65854347,93.819,93.76,3.64028228]
[1773682534736,9.65854347,93.819,93.75,3.64028228]
[1773682537630,9.65854347,93.819,93.751,117.0]
[1773682537835,9.65854347,93.819,93.76,3.64028228]
[1773682540635,9.65854347,93.819,93.761,117.0]
[1773682540938,9.65854347,93.819,93.77,3.64028228]
[1773682542839,9.60756946,93.809,93.762,85.56496765]
[1773682543242,9.60756946,93.809,93.742,6.1099467]
[1773682543440,9.60756946,93.809,93.744,6.1099467]
[1773682546637,9.60756946,93.809,93.745,80.56496765]
[1773682546842,3.64028228,93.8,93.745,80.56496765]
[1773682547841,3.64028228,93.8,93.744,6.1099467]
[1773682547842,3.64028228,93.82,93.746,6.15088378]
[1773682548047,8.80897507,93.832,93.78,3.64028228]
[1773682548345,8.80897507,93.865,93.82,3.64028228]
[1773682548544,8.80897507,93.865,93.81,3.64028228]
[1773682549646,8.80897507,93.865,93.82,3.64028228]
[1773682550044,8.80897507,93.865,93.81,3.64028228]
[1773682550847,8.80897507,93.865,93.785,46.36]
[1773682551042,3.63256444,93.85,93.79,3.63256444]
[1773682551245,8.8176531,93.849,93.79,3.63256444]
[1773682553150,8.8176531,93.849,93.78,3.63256444]
[1773682553549,8.8176531,93.849,93.79,3.63256444]
[1773682554050,8.8176531,93.849,93.78,3.63256444]
[1773682554250,8.8176531,93.849,93.79,3.63256444]
[1773682557453,8.82689675,93.829,93.77,3.63256444]
[1773682558053,8.82689675,93.829,93.76,3.63256444]
[1773682558353,3.63256444,93.82,93.76,3.63256444]
[1773682558652,3.63256444,93.81,93.75,3.63256444]
[1773682558850,8.82751296,93.819,93.75,3.63256444]
[1773682559049,8.82751296,93.819,93.76,3.63256444]
[1773682559244,8.82324219,93.86,93.8,3.63256444]
[1773682559447,8.82324219,93.86,93.81,3.63256444]
[1773682559753,8.82324219,93.86,93.82,3.63256444]
[1773682559953,8.82324219,93.86,93.81,3.63256444]
[1773682562557,8.74593318,93.884,93.83,3.63256444]
[1773682562760,8.74593318,93.884,93.84,3.63256444]
[1773682563060,33.56,93.896,93.84,3.63256444]
[1773682563257,33.56,93.896,93.85,3.63256444]
[1773682563560,8.74792381,93.916,93.86,3.63256444]
[1773682564762,8.74792381,93.916,93.84,8.63931268]
[1773682566961,8.78604998,93.944,93.84,8.63931268]
[1773682571861,8.78604998,93.944,93.86,8.63931268]
[1773682573962,8.78604998,93.944,93.84,8.63931268]
[1773682574166,8.75381028,93.942,93.841,80.56496765]
[1773682576768,8.75381028,93.942,93.842,80.56496765]
[1773682578065,8.75381028,93.942,93.843,80.56496765]
[1773682579662,8.75817416,93.94,93.86,8.63931268]
[1773682579969,8.76621861,93.962,93.86,8.63931268]
[1773682583565,8.76621861,93.962,93.88,8.63931268]
[1773682584873,8.77001451,93.993,93.881,80.56496765]
[1773682585072,8.77001451,93.993,93.882,80.56496765]
[1773682585974,8.77001451,93.993,93.91,8.63931268]
[1773682586974,8.77001451,93.993,93.9,32.02]
[1773682586975,8.77001451,93.993,93.95,3.62217302]
[1773682588174,8.80187235,94.01,93.96,3.62217302]
[1773682588475,8.80187235,94.009,93.95,3.62217302]
[1773682588776,8.80666353,94.027,93.94,8.61888488]
[1773682589376,8.80666353,94.027,93.936,42.14]
[1773682589877,8.80666353,94.027,93.92,8.61888488]
[1773682595679,8.79767762,94.019,93.911,80.56496765]
[1773682596177,8.79767762,94.019,93.912,80.56496765]
[1773682598482,8.79767762,94.019,93.901,80.56496765]
[1773682598782,8.79283597,93.999,93.902,80.56496765]
[1773682598977,8.79283597,93.999,93.9,8.61888488]
[1773682604085,8.61888488,94.02,93.9,8.61888488]
[1773682604086,8.79729337,94.015,93.9,8.61888488]
[1773682604288,8.79729337,94.031,93.94,8.61888488]
[1773682605482,8.79729337,94.031,93.941,43.2]
[1773682605688,8.79729337,94.031,93.93,8.61888488]
[1773682610790,8.88421203,94.019,93.96,3.62117466]
[1773682611090,8.88421203,94.019,93.95,3.62117466]
[1773682611091,3.62117466,94.01,93.95,3.62117466]
[1773682611688,8.88421203,94.019,93.96,3.62117466]
[1773682612189,8.88421203,94.019,93.97,3.62117466]
[1773682612791,8.88421203,94.019,93.97,3.6198069]
[1773682613392,8.9144248,94.049,93.98,3.6198069]
[1773682613591,8.9144248,94.049,93.99,3.6198069]
[1773682613792,8.9144248,94.049,93.98,3.6198069]
[1773682614493,8.9144248,94.049,93.99,3.6198069]
[1773682615192,3.6198069,94.04,93.98,3.6198069]
[1773682615392,3.6198069,94.02,93.96,3.6198069]
[1773682615695,8.91637891,94.019,93.96,3.6198069]
[1773682616694,8.91637891,94.019,93.95,3.6198069]